fUST/lending_fUST_20260417
["ID","MTS","AMOUNT","RATE_DAILY","PERIOD"]
[420644915,1776413443546,-1485.83,8.767e-05,2]
[420644916,1776413443555,-753.8,8.767e-05,2]
[420644917,1776413443565,-1515.08,8.767e-05,2]
[420644918,1776413443574,-500.0,8.767e-05,2]
[420644919,1776413443584,-500.0,8.767e-05,2]
[420644920,1776413443593,-500.0,8.767e-05,2]
[420644921,1776413443603,-500.0,8.767e-05,2]
[420644922,1776413443612,-500.0,8.767e-05,2]
[420644923,1776413443622,-500.0,8.767e-05,2]
[420644924,1776413443631,-945.65,8.767e-05,2]
[420644925,1776413443640,-500.0,8.767e-05,2]
[420644926,1776413443650,-843.41,8.767e-05,2]
[420644927,1776413443660,-500.0,8.767e-05,2]
[420644928,1776413443669,-508.42565317,8.767e-05,2]
[420644929,1776413443679,-961.18,8.767e-05,2]
[420644930,1776413443688,-1867.09,8.767e-05,2]
[420644931,1776413443697,-500.0,8.767e-05,2]
[420644932,1776413443707,-1660.72,8.767e-05,2]
[420644933,1776413443716,-2059.83,8.767e-05,2]
[420644934,1776413443726,-500.0,8.767e-05,2]
[420644935,1776413443735,-1126.12,8.767e-05,2]
[420644936,1776413443744,-500.0,8.767e-05,2]
[420644937,1776413443753,-1158.17,8.767e-05,2]
[420644938,1776413443762,-2565.4,8.767e-05,2]
[420644939,1776413443771,-554.38,8.767e-05,2]
[420644940,1776413443781,-545.8,8.767e-05,2]
[420644941,1776413443790,-500.0,8.767e-05,2]
[420644942,1776413443800,-1795.63,8.767e-05,2]
[420644943,1776413443809,-3013.27,8.767e-05,2]
[420644944,1776413443819,-525.16,8.767e-05,2]
[420644945,1776413443829,-1481.07,8.767e-05,2]
[420644946,1776413443839,-1038.9,8.767e-05,2]
[420644947,1776413443848,-500.0,8.767e-05,2]
[420644948,1776413443858,-559.5,8.767e-05,2]
[420644949,1776413443868,-500.0,8.767e-05,2]
[420644950,1776413443878,-506.05,8.767e-05,2]
[420644951,1776413443887,-500.0,8.767e-05,2]
[420644952,1776413443897,-500.0,8.767e-05,2]
[420644953,1776413443906,-654.14,8.767e-05,2]
[420644954,1776413443915,-500.0,8.767e-05,2]
[420644955,1776413443925,-1415.99,8.767e-05,2]
[420644956,1776413443935,-500.0,8.767e-05,2]
[420644957,1776413443945,-2714.4,8.767e-05,2]
[420644958,1776413443954,-14829.89,8.767e-05,2]
[420644959,1776413443963,-1131.82,8.767e-05,2]
[420644960,1776413443972,-3647.28,8.767e-05,2]
[420644961,1776413443982,-2733.25,8.767e-05,2]
[420644962,1776413443992,-507.56,8.767e-05,2]
[420644963,1776413444002,-4612.81,8.767e-05,2]
[420644964,1776413444011,-1169.45,8.767e-05,2]
[420644965,1776413444022,-546.62,8.767e-05,2]
[420644966,1776413444031,-10256.98,8.767e-05,2]
[420644967,1776413444041,-500.0,8.767e-05,2]
[420644968,1776413444050,-1814.05,8.767e-05,2]
[420644970,1776413444060,-500.0,8.767e-05,2]
[420644972,1776413444070,-500.0,8.767e-05,2]
[420644974,1776413444079,-3915.14,8.767e-05,2]
[420644976,1776413444089,-397.51854806,8.767e-05,2]
[420644977,1776413444100,-187.68905719,8.767e-05,2]
[420644978,1776413444109,-1788.78,8.767e-05,2]
[420644979,1776413444118,-559.86,8.767e-05,2]
[420644980,1776413444127,-500.0,8.767e-05,2]
[420644981,1776413444137,-643.48,8.767e-05,2]
[420644982,1776413444148,-500.0,8.767e-05,2]
[420644983,1776413444157,-2763.41,8.767e-05,2]
[420644984,1776413444167,-762.12,8.767e-05,2]
[420644985,1776413444177,-591.5,8.767e-05,2]
[420644986,1776413444186,-500.0,8.767e-05,2]
[420644987,1776413444196,-3584.66,8.767e-05,2]
[420644988,1776413444206,-500.0,8.767e-05,2]
[420644989,1776413444376,-500.0,8.767e-05,2]
[420644990,1776413444386,-641.98,8.767e-05,2]
[420644991,1776413444397,-931.56,8.767e-05,2]
[420644992,1776413444406,-2236.56,8.767e-05,2]
[420644993,1776413444416,-1199.0,8.767e-05,2]
[420644994,1776413444426,-500.0,8.767e-05,2]
[420644995,1776413444436,-800.0,8.768e-05,2]
[420644996,1776413444445,-600.0,8.778e-05,2]
[420644997,1776413444455,-803.0666432,8.793e-05,2]
[420644998,1776413444464,-800.0,8.801e-05,2]
[420644999,1776413444474,-800.0,8.803e-05,2]
[420645000,1776413444485,-1746.97052893,8.86e-05,2]
[420645001,1776413444494,-455.2431749,8.863e-05,2]
[420645002,1776413444504,-151.3015586,8.888e-05,2]
[420645003,1776413444514,-203.65986876,8.9e-05,2]
[420645004,1776413444523,-216.31376404,8.915e-05,2]
[420645005,1776413444533,-500.97949159,8.973e-05,2]
[420645006,1776413444543,-502.09453753,8.973e-05,2]
[420645007,1776413444553,-1500.0,8.988e-05,2]
[420645008,1776413444562,-500.85326627,8.988e-05,2]
[420645009,1776413444572,-1500.0,8.988e-05,2]
[420645010,1776413444582,-1500.0,8.988e-05,2]
[420645011,1776413444592,-1500.0,8.988e-05,2]
[420645012,1776413444601,-395685.49724065,9e-05,2]
[420645017,1776413444706,-1000.0,9e-05,2]
[420645018,1776413444722,-1181.75381267,9e-05,2]
[420645031,1776413446708,-1300.1,8.219e-05,2]
[420645032,1776413446718,-1300.1,8.493e-05,2]
[420645033,1776413446729,-4398.96763074,9e-05,2]
[420645034,1776413446765,-209996.00049357,9e-05,2]
[420645089,1776414632641,-859.11990399,6.994e-05,2]
[420645090,1776414632654,-399.86526697,6.994e-05,2]
[420645091,1776414632751,-1682.36285609,6.994e-05,2]
[420645093,1776414632761,-520.0,7.065e-05,2]
[420645094,1776414632771,-237.01583182,7.066e-05,2]
[420645095,1776414632781,-1262.95965973,7.066e-05,2]
[420645096,1776414632793,-2425.80830328,7.066e-05,2]
[420645385,1776414646934,-5000.0,7.714e-05,2]
[420645386,1776414646943,-300.0,7.792e-05,2]
[420645387,1776414646953,-500.0,7.793e-05,2]
[420645388,1776414646962,-150.19999999,7.8e-05,2]
[420645389,1776414646971,-500.0,8.093e-05,2]
[420645390,1776414646981,-500.0,8.118e-05,2]
[420645391,1776414646991,-500.0,8.118e-05,2]
[420645392,1776414647000,-500.0,8.118e-05,2]
[420645393,1776414647010,-500.0,8.118e-05,2]
[420645394,1776414647019,-500.0,8.118e-05,2]
[420645395,1776414647028,-500.0,8.118e-05,2]
[420645396,1776414647037,-491.96736252,8.118e-05,2]
[420645397,1776414647046,-500.0,8.118e-05,2]
[420645398,1776414647055,-500.0,8.118e-05,2]
[420645399,1776414647065,-334.1954679,8.118e-05,2]
[420645400,1776414647074,-500.0,8.118e-05,2]
[420645401,1776414647083,-500.0,8.118e-05,2]
[420645402,1776414647093,-500.0,8.118e-05,2]
[420645403,1776414647102,-500.0,8.118e-05,2]
[420645404,1776414647111,-500.0,8.118e-05,2]
[420645405,1776414647120,-538.90363124,8.118e-05,2]
[420645406,1776414647130,-500.0,8.118e-05,2]
[420645407,1776414647139,-500.0,8.118e-05,2]
[420645408,1776414647148,-1502.39467477,8.119e-05,2]
[420645560,1776415808407,-300.0,5.683e-05,2]
[420645687,1776415832588,-1681.50930523,5.57e-05,2]
[420645689,1776415832598,-5000.0,5.626e-05,2]
[420645691,1776415832607,-501.0,5.626e-05,2]
[420645693,1776415832616,-235.83387965,5.683e-05,2]
[420645695,1776415832625,-1200.0,5.739e-05,2]
[420645697,1776415832634,-300.0,5.823e-05,2]
[420645699,1776415832643,-300.0,5.823e-05,2]
[420645701,1776415832653,-1923.0,6.036e-05,2]
[420645703,1776415832662,-562.87859962,6.159e-05,2]
[420645705,1776415832672,-177.9051876,7.288e-05,2]
[420645707,1776415832680,-2122.62954762,7.346e-05,2]
[420645709,1776415832689,-193.045385,7.362e-05,2]
[420645711,1776415832698,-4281.39449437,7.446e-05,2]
[420645713,1776415832707,-6440.15944111,7.546e-05,2]
[420645714,1776415832717,-481.848,7.546e-05,2]
[420645716,1776415832726,-6689.38503218,7.646e-05,2]
[420645718,1776415832735,-278.28397799,7.683e-05,2]
[420645720,1776415832744,-2734.54484234,7.817e-05,2]
[420645745,1776415838293,-1751.73676825,7.739e-05,2]
[420645746,1776415838401,-3248.26323175,7.739e-05,2]
[420645747,1776415838411,-4252.72171257,7.817e-05,2]
[420645748,1776415838425,-319.45791264,7.9e-05,2]
[420645749,1776415838443,-875.90843331,7.9e-05,2]
[420645750,1776415838462,-540.48310798,7.9e-05,2]
[420645753,1776415838472,-1328.97176517,7.9e-05,2]
[420645755,1776415838482,-482.09245634,7.9e-05,2]
[420645756,1776415838492,-475.04507862,7.9e-05,2]
[420645757,1776415838502,-155.0,7.916e-05,2]
[420645758,1776415838512,-500.0,7.917e-05,2]
[420645760,1776415838522,-543.05746865,7.917e-05,2]
[420645761,1776415838531,-500.0,7.917e-05,2]
[420645763,1776415838541,-500.0,7.917e-05,2]
[420645765,1776415838551,-500.0,7.917e-05,2]
[420645767,1776415838560,-500.0,7.917e-05,2]
[420645769,1776415838570,-500.0,7.917e-05,2]
[420645770,1776415838579,-500.0,7.917e-05,2]
[420645771,1776415838589,-500.0,7.917e-05,2]
[420645772,1776415838599,-500.0,7.917e-05,2]
[420645773,1776415838608,-500.0,7.917e-05,2]
[420645774,1776415838618,-500.0,7.917e-05,2]
[420645775,1776415838628,-430.0,7.917e-05,2]
[420645776,1776415838637,-43353.11550805,7.918e-05,2]
[420645823,1776415846715,-27560.39669025,7.918e-05,2]
[420645824,1776415846771,-83676.71353988,7.918e-05,2]
[420645825,1776415846881,-1699.29526093,7.918e-05,2]
[420645826,1776415846942,-478.55877297,7.918e-05,2]
[420645827,1776415847001,-48531.04513828,7.918e-05,2]
[420645828,1776415847110,-6377.86122987,7.918e-05,2]
[420645829,1776415847120,-300.0,8.057e-05,2]
[420645830,1776415847130,-300.0,8.057e-05,2]
[420645831,1776415847141,-300.0,8.057e-05,2]
[420645832,1776415847151,-300.0,8.057e-05,2]
[420645833,1776415847161,-300.0,8.057e-05,2]
[420645834,1776415847171,-300.0,8.057e-05,2]
[420645835,1776415847180,-300.0,8.057e-05,2]
[420645836,1776415847190,-300.0,8.057e-05,2]
[420645837,1776415847212,-300.0,8.057e-05,2]
[420645838,1776415847222,-200.53,8.1e-05,2]
[420645839,1776415847232,-19.5937501,8.118e-05,2]
[420645918,1776416842107,997.0,8.4e-05,30]
[420645944,1776417032255,-384.768375,6.742e-05,2]
[420646087,1776417039340,-348.77600582,6.742e-05,2]
[420646088,1776417039552,-2383.92075277,6.742e-05,2]
[420646089,1776417039562,-2181.23203699,6.81e-05,2]
[420646090,1776417039571,-517.0,6.81e-05,2]
[420646091,1776417039581,-1200.0,6.947e-05,2]
[420646092,1776417039591,-235.41377242,7.053e-05,2]
[420646093,1776417039600,-300.0,7.086e-05,2]
[420646094,1776417039610,-300.0,7.086e-05,2]
[420646095,1776417039620,-300.0,7.086e-05,2]
[420646096,1776417039629,-300.0,7.087e-05,2]
[420646097,1776417039639,-532.91049657,7.6e-05,2]
[420646098,1776417039649,-1680.0,7.642e-05,2]
[420646099,1776417039658,-192.41362299,7.683e-05,2]
[420646100,1776417039667,-267.30142338,7.693e-05,2]
[420646101,1776417039676,-500.0,7.693e-05,2]
[420646102,1776417039686,-500.52363693,7.693e-05,2]
[420646103,1776417039695,-765.27663355,7.7e-05,2]
[420646104,1776417039705,-1713.78281388,7.7e-05,2]
[420646105,1776417039715,-636.48385091,7.7e-05,2]
[420646106,1776417039724,-385.478,7.7e-05,2]
[420646107,1776417039735,-500.0,7.709e-05,2]
[420646108,1776417039744,-500.0,7.709e-05,2]
[420646109,1776417039754,-500.0,7.709e-05,2]
[420646110,1776417039763,-500.0,7.709e-05,2]
[420646111,1776417039772,-500.0,7.709e-05,2]
[420646112,1776417039782,-500.0,7.709e-05,2]
[420646113,1776417039791,-500.0,7.709e-05,2]
[420646114,1776417039800,-500.0,7.709e-05,2]
[420646115,1776417039809,-500.0,7.709e-05,2]
[420646116,1776417039818,-500.0,7.709e-05,2]
[420646117,1776417039828,-500.0,7.709e-05,2]
[420646118,1776417039837,-500.0,7.709e-05,2]
[420646119,1776417039847,-500.0,7.709e-05,2]
[420646120,1776417039856,-500.0,7.709e-05,2]
[420646121,1776417039866,-500.0,7.709e-05,2]
[420646122,1776417039875,-500.0,7.709e-05,2]
[420646123,1776417039884,-500.0,7.709e-05,2]
[420646124,1776417039894,-500.0,7.709e-05,2]
[420646125,1776417039903,-500.0,7.709e-05,2]
[420646126,1776417039912,-500.0,7.709e-05,2]
[420646127,1776417039922,-500.0,7.709e-05,2]
[420646128,1776417039932,-500.0,7.709e-05,2]
[420646129,1776417039941,-500.0,7.709e-05,2]
[420646130,1776417039950,-500.0,7.709e-05,2]
[420646131,1776417039960,-500.0,7.709e-05,2]
[420646132,1776417039970,-577.21990811,7.709e-05,2]
[420646133,1776417039979,-500.0,7.709e-05,2]
[420646134,1776417039988,-500.0,7.709e-05,2]
[420646136,1776417039998,-409.64477921,7.709e-05,2]
[420646138,1776417040007,-500.0,7.709e-05,2]
[420646139,1776417040016,-500.0,7.709e-05,2]
[420646140,1776417040025,-500.0,7.709e-05,2]
[420646141,1776417040035,-500.0,7.709e-05,2]
[420646143,1776417040044,-500.0,7.709e-05,2]
[420646144,1776417040053,-500.0,7.709e-05,2]
[420646146,1776417040062,-500.0,7.709e-05,2]
[420646148,1776417040071,-500.0,7.709e-05,2]
[420646149,1776417040081,-500.0,7.709e-05,2]
[420646151,1776417040090,-500.0,7.709e-05,2]
[420646154,1776417040100,-500.0,7.709e-05,2]
[420646155,1776417040110,-500.0,7.709e-05,2]
[420646157,1776417040120,-500.0,7.709e-05,2]
[420646159,1776417040129,-500.0,7.709e-05,2]
[420646160,1776417040139,-500.0,7.709e-05,2]
[420646162,1776417040148,-500.0,7.709e-05,2]
[420646163,1776417040159,-325.7176465,7.709e-05,2]
[420646164,1776417040169,-500.0,7.709e-05,2]
[420646165,1776417040179,-500.0,7.709e-05,2]
[420646166,1776417040188,-500.0,7.709e-05,2]
[420646167,1776417040198,-500.0,7.709e-05,2]
[420646168,1776417040208,-500.0,7.709e-05,2]
[420646169,1776417040218,-500.0,7.709e-05,2]
[420646170,1776417040227,-0.93646693,7.709e-05,2]
[420646171,1776417040239,-499.06353307,7.709e-05,2]
[420646172,1776417040249,-151.0,7.712e-05,2]
[420646173,1776417040258,-250.1062384,7.713e-05,2]
[420646174,1776417040268,-500.0,7.713e-05,2]
[420646175,1776417040277,-500.0,7.713e-05,2]
[420646176,1776417040286,-500.0,7.713e-05,2]
[420646177,1776417040296,-500.0,7.713e-05,2]
[420646178,1776417040305,-481.59715782,7.713e-05,2]
[420646179,1776417040315,-500.0,7.713e-05,2]
[420646180,1776417040324,-500.0,7.713e-05,2]
[420646181,1776417040335,-500.0,7.713e-05,2]
[420646182,1776417040344,-500.0,7.713e-05,2]
[420646183,1776417040354,-568.84307619,7.713e-05,2]
[420646184,1776417040363,-500.0,7.713e-05,2]
[420646186,1776417040372,-637.68615237,7.713e-05,2]
[420646187,1776417040382,-415.34231293,7.714e-05,2]
[420646195,1776417040784,-2589.59266402,7.714e-05,2]
[420646196,1776417040796,-4182.12112569,7.714e-05,2]
[420646210,1776417043497,-2455.38369134,7.714e-05,2]
[420646364,1776417046564,-93141.65496792,7.714e-05,2]
[420646365,1776417046574,-5171.30861507,7.714e-05,2]
[420646367,1776417046584,-420.0,7.795e-05,2]
[420646369,1776417046594,-7161.675854,7.882e-05,2]
[420646371,1776417046604,-152.0,7.918e-05,7]
[420646373,1776417046613,-300.0,7.972e-05,2]
[420646374,1776417046623,-300.0,7.972e-05,2]
[420646375,1776417046632,-300.0,7.972e-05,2]
[420646376,1776417046641,-300.0,7.972e-05,2]
[420646378,1776417046650,-300.0,7.972e-05,2]
[420646380,1776417046660,-300.0,7.972e-05,2]
[420646382,1776417046669,-300.0,7.972e-05,2]
[420646384,1776417046679,-300.0,7.972e-05,2]
[420646386,1776417046688,-300.0,7.972e-05,2]
[420646388,1776417046698,-300.0,7.972e-05,2]
[420646390,1776417046707,-300.0,7.972e-05,2]
[420646392,1776417046717,-300.0,7.972e-05,2]
[420646394,1776417046727,-300.0,7.972e-05,2]
[420646396,1776417046737,-300.0,7.972e-05,2]
[420646398,1776417046746,-300.0,7.972e-05,2]
[420646399,1776417046754,-600.0,7.972e-05,2]
[420646401,1776417046763,-12497.10324686,7.972e-05,2]
[420646403,1776417046773,-455.5310146,8.015e-05,2]
[420646405,1776417046782,-324.7507196,8.039e-05,2]
[420646407,1776417046792,-160.0,8.08e-05,2]
[420646409,1776417046802,-145.02618369,8.118e-05,2]
[420646411,1776417046812,-500.0,8.118e-05,2]
[420646413,1776417046821,-357.29462629,8.218e-05,2]
[420646415,1776417046832,-1806.6863,8.219e-05,2]
[420646417,1776417046841,-500.0,8.219e-05,2]
[420646419,1776417046852,-470.13775526,8.219e-05,2]
[420646421,1776417046862,-500.0,8.219e-05,2]
[420646423,1776417046871,-500.0,8.219e-05,2]
[420646425,1776417046880,-500.0,8.219e-05,2]
[420646427,1776417046889,-500.0,8.219e-05,2]
[420646429,1776417046899,-503.00519732,8.219e-05,2]
[420646431,1776417046909,-500.0,8.219e-05,2]
[420646432,1776417046918,-500.0,8.219e-05,2]
[420646434,1776417046928,-500.0,8.219e-05,2]
[420646436,1776417046938,-576.34,8.219e-05,2]
[420646438,1776417046948,-500.0,8.219e-05,2]
[420646440,1776417046957,-527.8,8.219e-05,2]
[420646442,1776417046967,-500.0,8.219e-05,2]
[420646444,1776417046977,-547.36,8.219e-05,2]
[420646446,1776417046987,-500.0,8.219e-05,2]
[420646447,1776417046998,-500.0,8.219e-05,2]
[420646449,1776417047008,-500.0,8.219e-05,2]
[420646451,1776417047017,-500.0,8.219e-05,2]
[420646452,1776417047026,-500.0,8.219e-05,2]
[420646453,1776417047035,-500.0,8.219e-05,2]
[420646454,1776417047045,-500.0,8.219e-05,2]
[420646455,1776417047054,-500.0,8.219e-05,2]
[420646456,1776417047063,-500.0,8.219e-05,2]
[420646457,1776417047072,-500.0,8.219e-05,2]
[420646458,1776417047081,-500.0,8.219e-05,2]
[420646459,1776417047091,-500.0,8.219e-05,2]
[420646460,1776417047101,-500.0,8.219e-05,2]
[420646461,1776417047110,-500.0,8.219e-05,2]
[420646462,1776417047119,-500.36230894,8.219e-05,2]
[420646463,1776417047129,-168.71700454,8.219e-05,2]
[420646464,1776417047138,-500.0,8.219e-05,2]
[420646465,1776417047147,-500.0,8.219e-05,2]
[420646466,1776417047156,-500.95719389,8.219e-05,2]
[420646467,1776417047166,-589.1,8.219e-05,2]
[420646468,1776417047175,-1017.65,8.219e-05,2]
[420646469,1776417047185,-500.0,8.219e-05,2]
[420646470,1776417047194,-500.0,8.219e-05,2]
[420646471,1776417047203,-500.0,8.219e-05,2]
[420646472,1776417047213,-525.36954636,8.219e-05,2]
[420646473,1776417047222,-500.0,8.219e-05,2]
[420646474,1776417047232,-501.14243208,8.219e-05,2]
[420646475,1776417047241,-500.0,8.219e-05,2]
[420646476,1776417047250,-500.0,8.219e-05,2]
[420646477,1776417047259,-500.0,8.219e-05,2]
[420646478,1776417047268,-500.0,8.219e-05,2]
[420646479,1776417047278,-500.0,8.219e-05,2]
[420646480,1776417047288,-500.0,8.219e-05,2]
[420646481,1776417047297,-500.0,8.219e-05,2]
[420646482,1776417047308,-500.0,8.219e-05,2]
[420646483,1776417047319,-1204.68,8.219e-05,2]
[420646484,1776417047329,-245.22476875,8.219e-05,2]
[420646485,1776417047339,-597.87559519,8.219e-05,2]
[420646486,1776417047349,-500.0,8.219e-05,2]
[420646487,1776417047360,-500.0,8.219e-05,2]
[420646488,1776417047370,-500.0,8.219e-05,2]
[420646489,1776417047379,-806.71,8.219e-05,2]
[420646490,1776417047389,-500.0,8.219e-05,2]
[420646491,1776417047399,-500.0,8.219e-05,2]
[420646492,1776417047408,-500.0,8.219e-05,2]
[420646493,1776417047418,-500.0,8.219e-05,2]
[420646494,1776417047427,-500.0,8.219e-05,2]
[420646495,1776417047437,-500.0,8.219e-05,2]
[420646496,1776417047446,-500.0,8.219e-05,2]
[420646497,1776417047456,-434.63691346,8.219e-05,2]
[420646498,1776417047470,-65.36308654,8.219e-05,2]
[420646499,1776417047480,-500.0,8.219e-05,2]
[420646500,1776417047489,-4.01691344,8.219e-05,2]
[420646501,1776417047501,-495.98308656,8.219e-05,2]
[420646502,1776417047511,-500.0,8.219e-05,2]
[420646503,1776417047524,-1105.6,8.219e-05,2]
[420646504,1776417047533,-1001.44784158,8.219e-05,2]
[420646505,1776417047542,-500.0,8.219e-05,2]
[420646506,1776417047552,-500.0,8.219e-05,2]
[420646507,1776417047561,-500.0,8.219e-05,2]
[420646508,1776417047571,-500.0,8.219e-05,2]
[420646509,1776417047581,-500.0,8.219e-05,2]
[420646510,1776417047590,-584.95,8.219e-05,2]
[420646511,1776417047600,-500.0,8.219e-05,2]
[420646512,1776417047610,-1477.29,8.219e-05,2]
[420646513,1776417047620,-729.0,8.219e-05,2]
[420646514,1776417047629,-3271.6398865,8.219e-05,2]
[420646515,1776417047645,-816.6801135,8.219e-05,2]
[420646516,1776417047655,-91.20025098,8.219e-05,2]
[420646517,1776417047670,-408.79974902,8.219e-05,2]
[420646518,1776417047680,-1381.43,8.219e-05,2]
[420646519,1776417047690,-500.0,8.219e-05,2]
[420646520,1776417047699,-500.0,8.219e-05,2]
[420646521,1776417047708,-505.49620064,8.219e-05,2]
[420646522,1776417047718,-500.3791386,8.219e-05,2]
[420646523,1776417047727,-336.70204886,8.219e-05,2]
[420646569,1776417482949,-200.0,0.00010442,120]
[420646570,1776417482978,-200.0,0.00010481,120]
[420646571,1776417483010,-200.0,0.00010843,120]
[420646572,1776417483048,-200.0,0.00011341,120]
[420646573,1776417483080,-200.0,0.00011618,120]
[420646574,1776417483106,-200.0,0.00011769,120]
[420646575,1776417483137,-200.0,0.00011933,120]
[420646576,1776417483177,-200.0,0.00012679,120]
[420646577,1776417483208,-200.0,0.00013136,120]
[420646578,1776417483240,-200.0,0.00013206,120]
[420646579,1776417483272,-200.0,0.00013622,120]
[420646580,1776417483333,-200.0,0.00013798,120]
[420646581,1776417483360,-200.0,0.00013871,120]
[420646582,1776417483391,-200.0,0.00014008,120]
[420646583,1776417483419,-200.0,0.00014176,120]
[420646584,1776417483463,-200.0,0.00014924,120]
[420646585,1776417483491,-161.4677012,0.00015,120]
[420646586,1776417483521,-200.0,0.00015444,120]
[420646587,1776417483548,-200.0,0.00015524,120]
[420646588,1776417483576,-200.0,0.00015848,120]
[420646589,1776417483623,-200.0,0.00017327,120]
[420646590,1776417483652,-200.0,0.00017725,120]
[420646591,1776417483684,-200.0,0.00018379,120]
[420646592,1776417483712,-200.0,0.00018576,120]
[420646593,1776417483740,-200.0,0.00018717,120]
[420646594,1776417483766,-200.0,0.00018721,120]
[420646595,1776417483792,-200.0,0.00018771,120]
[420646596,1776417483835,-200.0,0.00020253,120]
[420646597,1776417483862,-200.0,0.00020379,120]
[420646598,1776417483890,-200.0,0.00020423,120]
[420646599,1776417483916,-200.0,0.00020446,120]
[420646600,1776417483947,-200.0,0.00021017,120]
[420646601,1776417483977,-200.0,0.0002173,120]
[420646602,1776417484005,-200.0,0.00021735,120]
[420646603,1776417484031,-200.0,0.00021863,120]
[420646604,1776417484061,-200.0,0.00022261,120]
[420646605,1776417484088,-169.0,0.00022635,120]
[420646606,1776417484117,-200.0,0.00023066,120]
[420646607,1776417484145,-200.0,0.00023458,120]
[420646608,1776417484173,-200.0,0.00023574,120]
[420646609,1776417484201,-200.0,0.00023745,120]
[420646610,1776417484228,-169.0,0.00023767,120]
[420646611,1776417484257,-200.0,0.0002423,120]
[420646612,1776417484284,-200.0,0.00024412,120]
[420646613,1776417484311,-2486.43,0.00024464,120]
[420646614,1776417484339,-200.0,0.00024598,120]
[420646615,1776417484364,-1680.05,0.00024617,120]
[420646616,1776417484391,-222.35,0.00024617,120]
[420646617,1776417484416,-410.33,0.00024617,120]
[420646618,1776417484444,-308.82,0.00024617,120]
[420646619,1776417484472,-1994.29,0.00024617,120]
[420646620,1776417484499,-1164.72,0.00024617,120]
[420646636,1776417901040,70000.0,0.00024657,120]
[420646637,1776417949397,152.0,0.00024593,120]
[420646640,1776417971634,99999.99,0.00024649,120]
[420646642,1776418002388,10000.0,0.00024658,120]
[420646648,1776418077563,1199.0,0.00024657,120]
[420646649,1776418079968,132807.0,0.00024657,120]
[420646652,1776418178239,150.04,0.00024657,120]
[420646654,1776418209487,1199.0,0.00024657,120]
[420646656,1776418228715,234.26089,4.005e-05,2]
[420646751,1776418232561,-1004.47284425,6.091e-05,2]
[420646753,1776418232570,-507.0,6.091e-05,2]
[420646755,1776418232579,-4408.48186402,6.153e-05,2]
[420646757,1776418232588,-238.33517007,6.184e-05,2]
[420646759,1776418232597,-300.0,6.306e-05,2]
[420646761,1776418232607,-1200.0,6.306e-05,2]
[420646764,1776418232617,-300.0,6.307e-05,2]
[420646766,1776418232627,-300.0,6.307e-05,2]
[420646770,1776418232637,-300.0,6.307e-05,2]
[420646773,1776418232647,-300.0,6.307e-05,2]
[420646775,1776418232657,-300.0,6.307e-05,2]
[420646778,1776418232667,-300.0,6.307e-05,2]
[420646781,1776418232677,-300.0,6.307e-05,2]
[420646784,1776418232687,-300.0,6.307e-05,2]
[420646787,1776418232696,-300.0,6.307e-05,2]
[420646789,1776418232705,-300.0,6.307e-05,2]
[420646791,1776418232715,-300.0,6.307e-05,2]
[420646792,1776418232724,-300.0,6.307e-05,2]
[420646794,1776418232734,-300.0,6.307e-05,2]
[420646796,1776418232743,-300.0,6.307e-05,2]
[420646798,1776418232753,-300.0,6.307e-05,2]
[420646800,1776418232762,-527.6622562,6.4e-05,2]
[420646802,1776418232771,-1122.27673132,6.4e-05,2]
[420646804,1776418232780,-1290.3108048,6.4e-05,2]
[420646806,1776418232789,-158.25481532,6.483e-05,2]
[420646808,1776418232799,-500.0,6.483e-05,2]
[420646810,1776418232809,-500.0,6.483e-05,2]
[420646812,1776418232818,-501.23748746,6.483e-05,2]
[420646814,1776418232826,-500.0,6.483e-05,2]
[420646815,1776418232836,-500.0,6.483e-05,2]
[420646817,1776418232845,-563.33169773,6.483e-05,2]
[420646819,1776418232855,-500.0,6.501e-05,2]
[420646821,1776418232864,-175.07436688,6.501e-05,2]
[420646823,1776418232874,-500.0,6.501e-05,2]